bitfinex/quotes_ETHUSD_20241019
["timestamp","ask_amount","ask_price","bid_price","bid_amount"]
[1729299022221,0.5365,2639.0,2638.2,0.07579504]
[1729299022453,0.0531706,2638.9,2638.2,0.07579504]
[1729299022621,0.5365,2639.0,2638.2,0.07579504]
[1729299022820,0.0531706,2638.9,2638.2,0.66350463]
[1729299023050,0.5365,2639.0,2638.2,0.66350463]
[1729299023320,0.05316694,2638.8,2638.2,0.66350463]
[1729299023536,0.5365,2639.0,2638.2,0.66350463]
[1729299024023,0.05316711,2638.9,2638.2,0.66350463]
[1729299024222,0.05316711,2638.9,2638.3,0.58770959]
[1729299024425,0.5365,2639.0,2638.4,0.07579502]
[1729299025065,0.05316711,2638.9,2638.7,3.0]
[1729299025270,0.5365,2639.0,2638.4,0.07579502]
[1729299025837,0.5365,2639.0,2638.7,3.0]
[1729299026040,0.05316711,2638.9,2638.4,0.07579502]
[1729299026252,0.5365,2639.0,2638.7,3.0]
[1729299026568,0.05316345,2638.8,2638.7,3.0]
[1729299026869,0.5365,2639.0,2638.7,3.0]
[1729299027651,0.5365,2639.0,2638.2,0.57227429]
[1729299027652,0.05316711,2638.9,2638.4,0.0753384]
[1729299027862,0.5365,2639.0,2638.3,0.0753384]
[1729299028060,0.05316345,2638.8,2638.3,0.0753384]
[1729299028263,0.5365,2639.0,2638.3,0.0753384]
[1729299028582,0.05297822,2638.7,2638.3,0.0753384]
[1729299028781,0.5365,2639.0,2638.4,0.053279]
[1729299028932,0.5365,2639.0,2638.3,0.053279]
[1729299029133,0.05298554,2638.9,2638.3,0.053279]
[1729299029354,0.5365,2639.0,2638.3,0.053279]
[1729299029743,0.05299253,2638.9,2638.3,0.053279]
[1729299029930,0.05299253,2638.9,2638.4,0.0757951]
[1729299030130,0.5365,2639.0,2638.3,0.07579511]
[1729299030334,0.5365,2639.0,2638.2,0.57227429]
[1729299030577,0.05299253,2638.9,2638.0,3.45232315]
[1729299030869,0.5365,2638.8,2638.0,3.45232315]
[1729299031866,0.5365,2638.8,2638.0,4.04003274]
[1729299032242,0.5365,2638.8,2638.0,4.61230703]
[1729299033375,0.5365,2638.8,2638.0,1.61230703]
[1729299034638,0.5365,2638.8,2638.0,4.61230703]
[1729299035060,0.5365,2638.8,2638.0,1.61230703]
[1729299036183,0.5365,2638.8,2638.1,0.58770959]
[1729299036678,0.10056035,2638.7,2638.1,0.58770959]
[1729299037040,0.5365,2638.8,2638.1,0.58770959]
[1729299037641,0.10056035,2638.7,2638.1,0.58770959]
[1729299037861,0.10056035,2638.7,2638.0,0.45232315]
[1729299037862,0.5365,2638.6,2638.0,0.45232315]
[1729299043480,0.5365,2638.6,2638.1,0.634141]
[1729299043672,0.5365,2638.6,2638.1,0.65441739]
[1729299046295,0.5365,2638.6,2638.0,0.45232315]
[1729299047507,3.63214628,2639.3,2638.0,0.45232315]
[1729299047508,0.5365,2638.4,2638.0,0.45232315]
[1729299048159,0.2825515,2638.3,2638.0,0.45232315]
[1729299048357,0.10038524,2638.3,2638.0,0.45232315]
[1729299049610,0.5365,2638.4,2638.0,0.45232315]
[1729299059133,9.44730332,2639.2,2638.1,0.6635143]
[1729299059338,0.5365,2639.0,2638.1,0.58770959]
[1729299059546,0.5365,2638.6,2638.1,0.58770959]
[1729299059894,0.38304415,2638.5,2638.1,0.58770959]
[1729299060129,0.10030162,2638.5,2638.0,0.45232315]
[1729299060502,0.28286406,2638.4,2638.0,0.45232315]
[1729299060705,0.5365,2638.6,2638.0,0.45232315]
[1729299060906,0.28286484,2638.5,2638.0,0.45232315]
[1729299061105,0.28286484,2638.4,2638.0,0.45232315]
[1729299061536,0.5365,2638.6,2638.0,0.45232315]
[1729299061741,0.5365,2638.4,2638.0,0.45232315]
[1729299062092,0.5365,2638.2,2638.0,0.45232315]
[1729299062293,0.28299189,2638.1,2638.0,0.45232315]
[1729299062538,0.91990486,2638.1,2638.0,0.45232315]
[1729299065629,0.81949189,2638.1,2638.0,0.45232315]
[1729299065835,0.91990576,2638.1,2638.0,0.45232315]
[1729299066638,0.81960809,2638.1,2638.0,0.45232315]
[1729299067819,0.91990576,2638.1,2638.0,0.45232315]
[1729299068013,0.81960809,2638.1,2638.0,0.45232315]
[1729299069631,0.5365,2638.1,2638.0,0.45232315]
[1729299069833,0.81960572,2638.1,2638.0,0.45232315]
[1729299072167,0.81960572,2638.1,2637.6,0.5928511]
[1729299072324,0.28310572,2638.0,2637.6,0.5928511]
[1729299075220,0.5365,2638.1,2637.6,0.5928511]
[1729299075449,0.28320246,2638.0,2637.6,0.5928511]
[1729299075764,0.5365,2638.1,2637.6,0.5928511]
[1729299075935,0.28319909,2638.0,2637.6,0.5928511]
[1729299076136,0.5365,2638.1,2637.6,0.5928511]
[1729299076343,0.28322844,2638.0,2637.6,0.5928511]
[1729299076547,0.5365,2638.1,2637.6,0.5928511]
[1729299076720,0.28322992,2638.0,2637.6,0.5928511]
[1729299076920,0.5365,2638.1,2637.6,0.5928511]
[1729299077164,0.38351908,2638.0,2637.6,0.5928511]
[1729299077365,0.10028535,2638.0,2637.6,0.5928511]
[1729299077937,0.5365,2638.1,2637.6,0.5928511]
[1729299078268,0.28324486,2638.0,2637.6,0.5928511]
[1729299078564,0.5365,2638.1,2637.6,0.5928511]
[1729299078771,0.28325793,2638.0,2637.6,0.5928511]
[1729299078988,0.5365,2638.1,2637.6,0.5928511]
[1729299079307,0.28325788,2638.0,2637.6,0.5928511]
[1729299079452,0.5365,2638.1,2637.6,0.5928511]
[1729299079652,0.28327312,2638.0,2637.6,0.5928511]
[1729299079854,0.5365,2638.1,2637.6,0.5928511]
[1729299080190,0.28327604,2638.0,2637.6,0.5928511]
[1729299080363,0.5365,2638.1,2637.6,0.5928511]
[1729299080690,0.28329905,2638.0,2637.6,0.5928511]
[1729299080887,0.5365,2638.1,2637.6,0.5928511]
[1729299081091,0.28329198,2638.0,2637.6,0.5928511]
[1729299081404,0.28329198,2637.9,2637.6,0.5928511]
[1729299081684,0.5365,2638.1,2637.6,0.5928511]
[1729299082193,0.28331371,2638.0,2637.6,0.5928511]
[1729299082355,0.28331371,2637.9,2637.6,0.5928511]
[1729299082556,0.5365,2638.1,2637.4,3.0]
[1729299082889,0.28333661,2638.0,2637.4,3.0]
[1729299083090,0.28333661,2637.9,2637.4,3.0]
[1729299083300,0.5365,2638.1,2637.4,3.0]
[1729299083468,0.28336556,2638.0,2637.3,5.37514239]
[1729299083662,0.81986556,2637.9,2637.3,5.37514239]
[1729299083852,0.28336556,2637.8,2637.3,5.37514239]
[1729299084057,0.28336556,2637.7,2637.3,5.37514239]
[1729299084282,0.28336556,2637.6,2637.3,5.37514239]
[1729299084493,0.5365,2637.9,2637.3,5.37514239]
[1729299084692,0.28330997,2637.8,2637.3,5.37514239]
[1729299084894,0.28330997,2637.7,2637.3,5.37514239]
[1729299085194,0.5365,2637.9,2637.3,6.53512627]
[1729299085400,0.28329257,2637.8,2637.4,3.58770959]
[1729299085565,0.5365,2637.9,2637.4,3.58770959]
[1729299085759,0.28329038,2637.8,2637.4,3.58770959]
[1729299086091,0.28329038,2637.7,2637.4,3.58770959]
[1729299086267,0.5365,2637.9,2637.4,3.58770959]
[1729299086471,0.28327374,2637.8,2637.4,3.58770959]
[1729299086672,0.28327374,2637.7,2637.4,3.58770959]
[1729299086857,0.5365,2637.9,2637.4,3.58770959]
[1729299087049,0.28327507,2637.8,2637.4,3.58770959]
[1729299087253,0.5365,2637.9,2637.4,3.58770959]
[1729299087254,0.28327507,2637.7,2637.4,3.58770959]
[1729299087550,0.5365,2637.9,2637.4,3.60797815]
[1729299087753,0.28326185,2637.8,2637.4,3.60797815]
[1729299088060,0.28326185,2637.7,2637.4,3.60797815]
[1729299088284,0.5365,2637.9,2637.4,3.60797815]
[1729299088459,0.28324891,2637.8,2637.4,3.60797815]
[1729299088659,0.28324891,2637.7,2637.4,3.60797815]
[1729299088995,0.5365,2637.9,2637.4,3.60797815]
[1729299089199,0.28324578,2637.8,2637.4,3.60797815]
[1729299089497,0.28324578,2637.7,2637.4,3.63082409]
[1729299089688,0.5365,2637.9,2637.4,3.66353404]
[1729299090003,0.38325009,2637.8,2637.4,3.66353404]
[1729299090158,0.28323053,2637.7,2637.4,3.66353404]
[1729299090354,0.5365,2637.9,2637.4,3.58770959]
[1729299090600,0.38324036,2637.8,2637.4,3.58770959]
[1729299090808,0.28323478,2637.7,2637.4,3.58770959]
[1729299090970,0.5365,2637.9,2637.4,3.58770959]
[1729299091170,0.38324259,2637.8,2637.4,3.58770959]
[1729299091405,0.5365,2637.9,2637.4,3.58770959]
[1729299091406,0.28323701,2637.7,2637.4,3.58770959]
[1729299091696,0.5365,2637.9,2637.4,3.58770959]
[1729299091900,0.28323841,2637.8,2637.4,3.58770959]
[1729299092195,0.28323841,2637.7,2637.4,3.58770959]
[1729299092402,0.5365,2637.9,2637.4,3.58770959]
[1729299092607,0.28323141,2637.8,2637.4,3.58770959]
[1729299092900,0.28323141,2637.7,2637.4,3.58770959]
[1729299093095,0.5365,2637.9,2637.4,3.58770959]
[1729299093304,0.2832395,2637.8,2637.4,3.58770959]
[1729299093486,0.2832395,2637.7,2637.4,3.58770959]
[1729299093684,0.5365,2637.9,2637.4,3.58770959]
[1729299093905,0.28324258,2637.8,2637.4,3.58770959]
[1729299094108,0.28324258,2637.7,2637.4,3.61275834]
[1729299094421,0.5365,2637.9,2637.4,3.66353392]
[1729299094606,0.28321882,2637.8,2637.4,3.66353392]
[1729299094925,0.28321882,2637.7,2637.4,3.58770959]
[1729299095127,0.5365,2637.9,2637.4,3.58770959]
[1729299095294,0.28321133,2637.8,2637.4,3.58770959]
[1729299095493,0.28321133,2637.7,2637.4,3.58770959]
[1729299095694,0.5365,2637.9,2637.4,3.58770959]
[1729299096019,0.28321737,2637.8,2637.4,3.58770959]
[1729299096207,0.5365,2637.9,2637.4,3.58770959]
[1729299096410,0.28321577,2637.8,2637.4,3.58770959]
[1729299096624,0.28321577,2637.7,2637.4,3.66353387]
[1729299096808,0.5365,2637.9,2637.4,3.66353387]
[1729299096997,0.28321419,2637.8,2637.4,3.66353387]
[1729299097195,0.28321419,2637.7,2637.4,3.66353387]
[1729299097657,0.5365,2638.4,2637.4,3.66353387]
[1729299097658,0.5365,2638.3,2637.4,3.66353387]
[1729299097797,0.28323926,2638.2,2637.6,0.8137]
[1729299098107,0.38322247,2638.1,2637.6,0.8137]
[1729299098311,0.09998321,2638.1,2637.6,0.8137]
[1729299098822,0.09998135,2638.0,2637.6,0.8137]
[1729299099026,0.5365,2638.5,2637.6,0.8137]
[1729299099194,0.38326006,2638.4,2637.6,0.8137]
[1729299099402,0.28327128,2638.3,2637.6,0.8137]
[1729299099588,0.38325634,2638.2,2637.6,0.8137]
[1729299099787,0.28327128,2638.1,2637.6,0.8137]
[1729299100013,0.38325263,2638.0,2637.6,0.8137]
[1729299100321,0.09998135,2638.0,2637.6,0.8137]
[1729299100690,0.5365,2638.5,2637.6,0.8137]
[1729299100904,0.09997949,2637.9,2637.6,0.8137]
[1729299101100,0.5365,2638.5,2637.6,0.8137]
[1729299101283,0.63743366,2638.4,2637.6,0.8137]
[1729299101487,0.28330385,2638.3,2637.6,0.8137]
[1729299101702,0.28330385,2638.2,2637.6,0.8137]
[1729299101903,0.28330385,2638.1,2637.6,0.8137]
[1729299102123,0.5365,2638.5,2637.6,0.8137]
[1729299102124,0.28330385,2638.0,2637.6,0.8137]
[1729299102287,0.5365,2638.5,2637.6,0.8137]
[1729299102493,0.5365,2638.3,2637.6,0.8137]
[1729299102693,0.63741493,2638.2,2637.6,0.8137]
[1729299102919,0.28328941,2638.1,2637.6,0.8137]
[1729299103129,0.28328941,2638.0,2637.6,0.8137]
[1729299103434,0.28328941,2637.9,2637.6,0.8137]
[1729299103593,0.5365,2638.3,2637.6,0.8137]
[1729299103794,0.38338864,2638.2,2637.6,0.8137]
[1729299104004,0.28331621,2638.1,2637.6,0.8137]
[1729299104203,0.28331621,2638.0,2637.6,0.8137]
[1729299104435,0.28331621,2637.9,2637.6,0.8137]
[1729299104639,0.5365,2638.3,2637.6,0.8137]
[1729299104847,0.63749918,2638.2,2637.6,0.8137]
[1729299105050,0.28333297,2638.1,2637.6,0.8137]
[1729299105224,0.28337828,2638.0,2637.6,0.8137]
[1729299105406,0.28338219,2637.9,2637.6,0.8137]
[1729299105605,0.28338219,2637.8,2637.6,0.8137]
[1729299105819,0.5365,2638.3,2637.6,0.8137]
[1729299106143,0.73767541,2638.2,2637.6,0.8137]
[1729299106346,0.2833791,2638.1,2637.6,0.8137]
[1729299106640,0.2833791,2638.0,2637.6,0.8137]
[1729299106806,0.2833791,2637.9,2637.6,0.8137]
[1729299106998,0.2833791,2637.8,2637.4,0.8137]
[1729299107337,0.5365,2637.9,2637.4,0.8137]
[1729299107338,0.38342106,2637.7,2637.4,0.8137]
[1729299107501,0.28340971,2637.6,2637.4,0.8137]
[1729299107701,0.5365,2637.9,2637.4,0.8137]
[1729299108002,0.38351849,2637.8,2637.4,0.8137]
[1729299108237,0.28341156,2637.7,2637.4,0.8137]
[1729299108404,0.28341156,2637.6,2637.4,0.8137]
[1729299108605,0.5365,2637.9,2637.4,0.8137]
[1729299108951,0.38351153,2637.8,2637.4,0.8137]
[1729299109156,0.2834046,2637.7,2637.4,0.8137]
[1729299109370,0.2834046,2637.6,2637.4,0.8137]
[1729299109516,0.10010321,2637.6,2637.4,0.8137]
[1729299109720,0.5365,2637.9,2637.4,0.8137]
[1729299109920,0.28339164,2637.8,2637.4,0.8137]
[1729299110222,0.28339164,2637.7,2637.4,0.8137]
[1729299110424,0.38349485,2637.6,2637.4,0.8137]
[1729299110760,0.5365,2637.9,2637.4,0.8137]
[1729299111056,0.38349278,2637.8,2637.4,0.8137]
[1729299111230,0.28338585,2637.7,2637.4,0.8137]
[1729299111420,0.28338585,2637.6,2637.4,0.8137]
[1729299111614,0.5365,2637.9,2637.4,0.8137]
[1729299111820,0.3834923,2637.8,2637.4,0.8137]
[1729299112034,0.28338537,2637.7,2637.4,0.8137]
[1729299112361,0.28338537,2637.6,2637.2,3.59294074]
[1729299112548,0.5365,2637.9,2637.2,4.38044074]
[1729299112747,0.28344491,2637.8,2637.2,4.38044074]
[1729299112919,0.28344491,2637.7,2637.2,4.38044074]
[1729299113125,0.28344491,2637.6,2637.2,1.38044074]
[1729299113465,0.2834192,2637.5,2637.2,1.38044074]
[1729299113620,0.5365,2637.9,2637.2,1.38044074]
[1729299113822,0.38341,2637.8,2637.2,0.7875]
[1729299114126,0.2834149,2637.7,2637.2,0.7875]
[1729299114331,0.0999951,2637.8,2637.2,0.7875]
[1729299114332,0.2834149,2637.6,2637.2,0.7875]
[1729299114528,0.2834149,2637.5,2637.2,0.7875]
[1729299114734,0.09998438,2637.6,2637.2,0.7875]
[1729299114935,0.09998066,2637.4,2637.2,0.7875]
[1729299115336,0.5365,2637.9,2637.2,0.7875]
[1729299115536,0.28335816,2637.8,2637.2,0.7875]
[1729299115738,0.28335816,2637.7,2637.2,0.7875]
[1729299115957,0.28335816,2637.6,2637.2,0.7875]
[1729299116163,0.28335816,2637.5,2637.2,0.7875]
[1729299116673,0.09998066,2637.4,2637.2,0.7875]
[1729299117050,0.5365,2637.9,2637.2,0.7875]
[1729299117250,0.28333264,2637.8,2637.3,0.58770959]
[1729299117558,0.0999881,2637.8,2637.3,0.58770959]
[1729299117768,0.28334128,2637.7,2637.3,0.58770959]
[1729299117970,0.28334128,2637.6,2637.3,0.58770959]
[1729299118176,0.5365,2637.9,2637.3,0.58770959]
[1729299118380,0.28333474,2637.8,2637.4,0.57227429]
[1729299118561,0.28333474,2637.7,2637.3,0.66353597]
[1729299118877,0.38328418,2637.6,2637.3,0.58770959]
[1729299119034,0.28333524,2637.5,2637.2,0.7875]
[1729299119380,0.09994944,2637.6,2637.2,0.7875]
[1729299119536,0.28332349,2637.5,2637.2,0.7875]
[1729299119737,0.5365,2637.9,2637.2,0.7875]
[1729299119982,0.2833234,2637.8,2637.2,0.7875]
[1729299120200,0.2833234,2637.7,2637.2,0.7875]
[1729299120485,0.38327284,2637.6,2637.2,0.7875]
[1729299120773,0.2833234,2637.5,2637.2,0.7875]
[1729299120937,0.5365,2637.9,2637.2,0.7875]
[1729299121370,0.3832725,2637.8,2637.2,0.7875]
[1729299121694,0.28331584,2637.7,2637.2,0.7875]
[1729299121980,0.28331584,2637.6,2637.2,0.7875]
[1729299122190,0.28331584,2637.5,2637.2,0.7875]
[1729299122343,0.5365,2637.9,2637.2,0.7875]
[1729299122544,0.28329624,2637.8,2637.2,0.7875]
[1729299122744,0.28329624,2637.7,2637.2,0.7875]
[1729299123070,0.38324918,2637.6,2637.2,0.7875]
[1729299123269,0.28329624,2637.5,2637.2,0.7875]
[1729299123438,0.5365,2637.9,2637.2,0.7875]
[1729299123780,0.3832511,2637.8,2637.2,0.7875]
[1729299124011,0.28329444,2637.7,2637.2,0.7875]
[1729299124303,0.38324738,2637.6,2637.3,0.58770959]
[1729299124480,0.38325487,2637.6,2637.3,0.58770959]
[1729299124650,0.5365,2637.9,2637.3,0.58770959]
[1729299124850,0.28330179,2637.8,2637.3,0.58770959]
[1729299125056,0.28330179,2637.7,2637.3,0.58770959]
[1729299125282,0.28330179,2637.6,2637.3,0.58770959]
[1729299125483,0.09995294,2637.6,2637.3,0.58770959]
[1729299125793,0.5365,2637.9,2637.3,0.58770959]
[1729299125952,0.28330632,2637.8,2637.3,0.58770959]
[1729299126151,0.28330632,2637.7,2637.3,0.58770959]
[1729299126353,0.38325926,2637.6,2637.3,0.58770959]
[1729299126654,0.5365,2637.9,2637.3,0.58770959]
[1729299126888,0.28331962,2637.8,2637.3,0.58770959]
[1729299127104,0.28331962,2637.7,2637.3,0.58770959]
[1729299127394,0.38327256,2637.6,2637.3,0.58770959]
[1729299127600,0.5365,2637.9,2637.3,0.58770959]
[1729299127751,0.28332174,2637.8,2637.3,0.58770959]
[1729299127955,0.28332174,2637.7,2637.3,0.58770959]
[1729299128288,0.38327468,2637.6,2637.3,0.58770959]
[1729299128489,0.09995294,2637.6,2637.3,0.58770959]
[1729299128669,0.5365,2637.9,2637.3,0.58770959]
[1729299128866,0.28332564,2637.8,2637.3,0.58770959]
[1729299129055,0.28332564,2637.7,2637.3,0.58770959]
[1729299129256,0.28332564,2637.6,2637.3,0.58770959]
[1729299129503,0.09995294,2637.6,2637.3,0.58770959]
[1729299129703,0.5365,2637.9,2637.3,0.58770959]
[1729299129868,0.28334549,2637.8,2637.3,0.58770959]
[1729299130060,0.28334549,2637.7,2637.3,0.58770959]
[1729299130261,0.28334549,2637.6,2637.3,0.58770959]
[1729299130462,0.09995294,2637.6,2637.3,0.58770959]
[1729299130657,0.5365,2637.9,2637.3,0.58770959]
[1729299130865,0.28333411,2637.8,2637.3,0.58770959]
[1729299131105,0.28333411,2637.7,2637.3,0.58770959]
[1729299131275,0.28333411,2637.6,2637.3,0.58770959]
[1729299131477,0.09895825,2637.6,2637.3,0.58770959]
[1729299131684,0.28331747,2637.5,2637.2,0.7875]
[1729299132001,0.09895453,2637.4,2637.2,0.7875]
[1729299132221,0.5365,2637.9,2637.2,1.37520959]
[1729299132394,0.28331882,2637.8,2637.2,1.37520959]
[1729299132601,0.28331882,2637.7,2637.2,1.37520959]
[1729299132764,0.38227707,2637.6,2637.2,1.37520959]
[1729299132967,0.09895825,2637.6,2637.2,1.37520959]
[1729299133291,0.28331968,2637.5,2637.2,1.37520959]
[1729299133469,0.5365,2637.9,2637.2,1.37520959]
[1729299133672,0.2833102,2637.8,2637.2,1.37520959]
[1729299133902,0.2833102,2637.7,2637.2,1.37520959]
[1729299134070,0.2833102,2637.6,2637.2,1.37520959]
[1729299134271,0.2833102,2637.5,2637.2,1.37520959]
[1729299134492,0.09895825,2637.6,2637.2,1.37520959]
[1729299134683,0.28330343,2637.5,2637.2,1.37520959]
[1729299134979,0.5365,2637.9,2637.2,1.37520959]
[1729299135183,0.09895453,2637.4,2637.2,1.37520959]
[1729299135511,0.5365,2637.9,2637.2,1.37520959]
[1729299135715,0.28329775,2637.8,2637.2,1.37520959]
[1729299135919,0.28329775,2637.7,2637.2,1.37520959]
[1729299136086,0.28329775,2637.6,2637.2,1.37520959]
[1729299136287,0.28329775,2637.5,2637.2,1.37520959]
[1729299136611,0.09895453,2637.4,2637.2,1.37520959]
[1729299136915,0.5365,2637.9,2637.2,1.37520959]
[1729299137207,0.38224742,2637.8,2637.2,1.37520959]
[1729299137374,0.28328545,2637.7,2637.2,1.37520959]
[1729299137574,0.3822437,2637.6,2637.2,1.37520959]
[1729299137776,0.28328545,2637.5,2637.2,1.37520959]
[1729299138001,0.09895453,2637.4,2637.2,1.37520959]
[1729299138176,0.5365,2637.9,2637.2,1.37520959]
[1729299138374,0.38216959,2637.8,2637.2,1.37520959]
[1729299138612,0.28320762,2637.7,2637.2,1.37520959]
[1729299138825,0.28320762,2637.6,2637.2,1.37520959]
[1729299139031,0.09895825,2637.6,2637.3,0.7515]
[1729299139189,0.5365,2638.2,2637.3,0.7515]
[1729299139522,0.73620855,2638.1,2637.3,0.7515]
[1729299139727,0.637241,2638.0,2637.3,0.7515]
[1729299140027,1.98287248,2638.3,2637.3,0.7515]
[1729299140028,0.09886935,2637.9,2637.3,0.7515]
[1729299140236,0.2832245,2637.9,2637.3,0.7515]
[1729299140380,0.5365,2638.2,2637.3,0.7515]
[1729299140381,0.09886749,2637.8,2637.3,0.7515]
[1729299140587,0.28322198,2637.7,2637.3,0.7515]
[1729299140885,0.38208575,2637.6,2637.3,0.7515]
[1729299141093,0.09886377,2637.6,2637.3,0.7515]
[1729299141386,0.5365,2638.2,2637.4,0.04491283]
[1729299141602,0.73618537,2638.1,2637.3,0.7515]
[1729299141828,0.63735378,2638.0,2637.4,0.04491283]
[1729299142028,0.38212884,2637.9,2637.5,0.7515]
[1729299142340,0.28325949,2637.8,2637.5,0.7515]
[1729299142638,0.38212512,2637.7,2637.5,0.7515]
[1729299142843,0.28325949,2637.6,2637.5,0.7515]
[1729299143336,0.28325949,2638.0,2637.5,0.7515]
[1729299143535,0.28325949,2637.9,2637.5,0.7515]
[1729299143748,0.28325949,2637.8,2637.5,0.7515]
[1729299144042,0.38221557,2637.7,2637.5,0.7515]
[1729299144240,0.28332895,2637.6,2637.5,0.7515]
[1729299146914,0.38222771,2637.6,2637.5,0.7515]
[1729299147727,0.09889876,2637.6,2637.5,0.7515]
[1729299147912,0.38243019,2637.6,2637.5,0.7515]
[1729299148252,0.09890225,2637.6,2637.5,0.7515]
[1729299148412,0.28358215,2637.6,2637.5,0.7515]
[1729299148723,0.3824844,2637.6,2637.5,0.7515]
[1729299150052,0.3824844,2637.6,2637.0,4.59064239]
[1729299150320,0.82008215,2637.5,2637.1,0.8213]
[1729299150468,0.28358215,2637.4,2636.9,0.8213]
[1729299150678,0.28358215,2637.4,2636.6,1.59064239]
[1729299150679,0.38247884,2637.3,2636.6,1.59064239]
[1729299150827,0.28358215,2637.2,2636.7,0.8213]
[1729299151027,0.5365,2637.5,2636.7,0.8213]
[1729299151028,0.38247162,2637.1,2636.7,0.8213]
[1729299151233,0.28358215,2637.0,2636.7,0.8213]
[1729299151439,0.28358215,2636.9,2636.7,0.8213]
[1729299151645,0.5365,2637.5,2636.7,0.8213]
[1729299151977,0.98895127,2637.4,2636.7,0.8213]
[1729299152141,0.637889,2637.3,2636.7,0.8213]
[1729299152331,0.28351236,2637.2,2636.7,0.8213]
[1729299152675,0.5365,2637.5,2636.7,0.8213]
[1729299152676,0.82001236,2637.1,2636.7,0.8213]
[1729299152828,0.28351236,2637.0,2636.7,0.8213]
[1729299153033,0.09888574,2636.9,2636.7,0.8213]
[1729299153225,0.5365,2637.1,2636.7,0.8213]
[1729299153426,0.38229172,2637.0,2636.7,0.8213]
[1729299153668,0.28340412,2636.9,2636.5,0.8213]
[1729299153871,0.38193822,2636.8,2636.5,0.8213]
[1729299154090,0.09854443,2636.8,2636.5,0.8213]
[1729299154287,0.5365,2637.1,2636.5,0.8213]
[1729299154497,0.28328224,2637.0,2636.5,0.8213]
[1729299154786,0.28328224,2636.9,2636.5,0.8213]
[1729299154986,0.28328224,2636.8,2636.5,0.8213]
[1729299155185,0.09850243,2636.8,2636.5,0.8213]
[1729299155599,0.5365,2637.1,2636.3,1.97998388]
[1729299155794,0.28322608,2637.0,2636.3,1.97998388]
[1729299156095,0.28322608,2636.9,2636.3,1.97998388]
[1729299156295,0.28322608,2636.9,2636.3,1.40770959]
[1729299156459,0.0984324,2636.8,2636.3,1.40770959]
[1729299156661,0.5365,2637.1,2636.3,1.40770959]
[1729299156864,0.38158155,2637.0,2636.3,1.40770959]
[1729299157083,0.28314543,2636.9,2636.3,1.40770959]
[1729299157262,0.09843612,2637.0,2636.3,1.40770959]
[1729299157470,0.2830767,2636.9,2636.3,1.40770959]
[1729299157683,0.0984324,2636.8,2636.3,1.40770959]
[1729299158190,0.5365,2637.1,2636.3,1.40770959]
[1729299158387,0.28301041,2637.0,2636.3,1.40770959]
[1729299158594,0.28301041,2636.9,2636.3,1.40770959]
[1729299158892,0.0984324,2636.8,2636.3,1.40770959]
[1729299159263,0.5365,2637.1,2636.3,1.40770959]
[1729299159467,0.38139647,2637.0,2636.3,1.40770959]
[1729299159702,0.28295728,2636.9,2636.3,1.40770959]
[1729299159865,0.09843612,2637.0,2636.3,1.40770959]
[1729299160055,0.28295961,2636.9,2636.3,1.40770959]
[1729299160255,0.5365,2637.1,2636.3,1.40770959]
[1729299160256,0.0984324,2636.8,2636.3,1.40770959]
[1729299160570,0.5365,2637.1,2636.3,1.40770959]
[1729299160766,0.28292346,2637.0,2636.3,1.40770959]
[1729299160971,0.09843612,2637.0,2636.3,1.40770959]
[1729299161970,0.81944563,2636.9,2636.1,1.36734155]
[1729299162181,0.81944563,2636.8,2636.1,1.36734155]
[1729299162495,0.63487989,2636.8,2636.1,1.36734155]
[1729299163802,0.63487989,2636.8,2636.1,0.54734155]
[1729299163953,0.5365,2636.6,2636.1,0.54734155]
[1729299166289,0.5365,2636.6,2635.9,0.82]
[1729299166869,0.09829027,2636.5,2635.9,0.82]
[1729299174871,0.09829027,2636.5,2635.9,1.40770959]
[1729299175082,0.09829027,2636.5,2636.0,0.61422764]
[1729299175304,0.09829027,2636.5,2636.4,3.0]
[1729299175462,0.5365,2636.8,2636.1,0.774]
[1729299176560,0.5365,2636.8,2635.9,0.774]
[1729299178405,0.63134211,2636.7,2635.9,0.774]
[1729299178804,0.5365,2636.7,2635.7,0.0083606]
[1729299179014,0.5365,2636.5,2635.7,0.0083606]
[1729299179375,0.5365,2636.3,2635.7,0.0083606]
[1729299179787,0.09470674,2636.2,2635.7,0.0083606]
[1729299179993,0.5365,2636.1,2635.7,0.0083606]
[1729299180711,0.5365,2636.1,2635.8,0.58770959]
[1729299181899,0.5365,2636.1,2635.7,0.0083606]
[1729299184680,0.09464698,2636.0,2635.7,3.0083606]
[1729299184880,0.09464698,2636.0,2635.7,0.0083606]
[1729299185083,0.09464698,2636.0,2635.8,3.0]
[1729299185402,0.09464698,2636.0,2635.7,0.0083606]
[1729299185717,0.09464698,2636.0,2635.8,3.0]
[1729299186124,0.09464698,2636.0,2635.8,3.58770959]
[1729299186414,0.09464698,2636.0,2635.7,0.7702606]
[1729299186613,0.5365,2636.4,2635.7,0.7702606]
[1729299186819,0.09437188,2635.9,2635.7,0.7702606]
[1729299186972,0.5365,2636.4,2635.7,0.7702606]
[1729299187174,0.5365,2636.4,2635.7,0.0083606]
[1729299187418,0.5365,2636.2,2635.7,0.0083606]
[1729299187782,0.09438612,2636.1,2635.7,0.0083606]
[1729299190325,0.09438612,2636.1,2635.7,0.59607019]
[1729299190518,0.09438612,2636.1,2635.8,0.7508]
[1729299190676,0.09438612,2636.1,2635.9,0.58770959]
[1729299191025,0.5365,2636.6,2635.8,0.7508]
[1729299191181,0.09442277,2636.0,2635.8,0.7508]
[1729299191512,0.5365,2636.6,2635.8,0.7508]
[1729299191513,0.5365,2636.6,2635.9,0.7508]
[1729299191911,0.09443208,2636.5,2635.9,0.7508]
[1729299197705,0.09443208,2636.5,2636.3,3.0]
[1729299198851,0.09443208,2636.5,2636.0,0.04122637]
[1729299199242,0.09443208,2636.5,2636.3,3.0]
[1729299199960,0.09443208,2636.5,2636.4,0.7661]
[1729299200415,0.5365,2637.0,2636.4,0.7661]
[1729299200763,0.37418472,2636.9,2636.4,0.7661]
[1729299200973,0.2826996,2636.8,2636.4,0.7661]
[1729299201453,0.0914814,2636.7,2636.4,0.7661]
[1729299201616,0.5365,2637.0,2636.4,0.7661]
[1729299201818,0.09148512,2636.9,2636.4,0.7661]
[1729299202056,0.37420756,2636.9,2636.4,0.7661]
[1729299202367,0.28272244,2636.8,2636.4,0.7661]
[1729299202892,0.0914814,2636.7,2636.4,0.7661]
[1729299203224,0.5365,2637.0,2636.4,0.7661]
[1729299203417,0.28285396,2636.9,2636.4,0.7661]
[1729299203627,0.28285396,2636.8,2636.4,0.7661]
[1729299203861,0.28285396,2636.8,2636.7,3.0]